[Event "Titled Tuesday Blitz May 4 2021"]
[White "Prohorov, Olexandr"]
[Black "Ortega Amarelle, Mariano"]
[WhiteFideId "14105578"]
[BlackFideId "3504301"]
[WhiteElo "2100"]
[BlackElo "2388"]
[Result "0-1"]
[Round "03"]
[TimeControl "180+1"]
[Date "2021.05.04"]
[WhiteClock "0:02:25"]
[BlackClock "0:01:54"]

1. e4 {[%clk 0:03:00]}  c5 {[%clk 0:02:57]} 2. c3 {[%clk 0:03:00]}  e6 {[%clk 0:02:58]} 3. d4 {[%clk 0:02:59]}  d5 {[%clk 0:02:59]} 4. exd5 {[%clk 0:02:59]}  Qxd5 {[%clk 0:02:59]} 5. Nf3 {[%clk 0:02:59]}  Nf6 {[%clk 0:02:58]} 6. Na3 {[%clk 0:02:59]}  Nc6 {[%clk 0:02:50]} 7. Nb5 {[%clk 0:02:58]}  Qd8 {[%clk 0:02:47]} 8. dxc5 {[%clk 0:02:57]}  Bxc5 {[%clk 0:02:28]} 9. Qxd8+ {[%clk 0:02:57]}  Kxd8 {[%clk 0:02:29]} 10. b4 {[%clk 0:02:55]}  Bb6 {[%clk 0:02:21]} 11. Be2 {[%clk 0:02:36]}  a6 {[%clk 0:02:20]} 12. Nd6 {[%clk 0:02:34]}  Ke7 {[%clk 0:02:19]} 13. Nxc8+ {[%clk 0:02:32]}  Raxc8 {[%clk 0:02:20]} 14. O-O {[%clk 0:02:32]}  Ne4 {[%clk 0:02:12]} 15. Bb2 {[%clk 0:02:32]}  Rhd8 {[%clk 0:02:10]} 16. Rfe1 {[%clk 0:02:25]}  Bxf2+ {[%clk 0:02:09]} 17. Kf1 {[%clk 0:02:24]}  Bxe1 {[%clk 0:02:09]} 18. Kxe1 {[%clk 0:02:25]}  f6 {[%clk 0:02:01]} 19. a3 {[%clk 0:02:23]}  b5 {[%clk 0:01:58]} 20. c4 {[%clk 0:02:24]}  bxc4 {[%clk 0:01:55]} 21. Bxc4 {[%clk 0:02:25]}  Nxb4 {[%clk 0:01:54]} 0-1


[Site "https://www.chess.com"]

[Event "Titled Tuesday Blitz May 4 2021"]
[White "Prraneeth Vuppala"]
[Black "Luberanski, Jakub"]
[WhiteFideId "46622373"]
[BlackFideId "21830509"]
[WhiteElo "1759"]
[BlackElo "2078"]
[Result "1-0"]
[Round "03"]
[TimeControl "180+1"]
[Date "2021.05.04"]
[WhiteClock "0:01:32"]
[BlackClock "0:00:25"]

1. e4 {[%clk 0:03:00]}  e5 {[%clk 0:02:59]} 2. Nf3 {[%clk 0:02:59]}  Nc6 {[%clk 0:02:59]} 3. Bb5 {[%clk 0:02:58]}  f5 {[%clk 0:03:00]} 4. d3 {[%clk 0:02:53]}  fxe4 {[%clk 0:02:56]} 5. dxe4 {[%clk 0:02:52]}  Nf6 {[%clk 0:02:56]} 6. O-O {[%clk 0:02:41]}  Bc5 {[%clk 0:02:53]} 7. Nc3 {[%clk 0:02:34]}  O-O {[%clk 0:02:48]} 8. Bxc6 {[%clk 0:02:34]}  dxc6 {[%clk 0:02:44]} 9. Qxd8 {[%clk 0:02:28]}  Rxd8 {[%clk 0:02:45]} 10. Nxe5 {[%clk 0:02:27]}  Bd4 {[%clk 0:02:16]} 11. Nd3 {[%clk 0:02:18]}  Bxc3 {[%clk 0:02:14]} 12. bxc3 {[%clk 0:02:19]}  Nxe4 {[%clk 0:02:14]} 13. Bf4 {[%clk 0:02:11]}  Bf5 {[%clk 0:01:59]} 14. Bxc7 {[%clk 0:02:08]}  Rd7 {[%clk 0:01:59]} 15. Be5 {[%clk 0:02:04]}  Re8 {[%clk 0:01:58]} 16. Bd4 {[%clk 0:02:00]}  b6 {[%clk 0:01:56]} 17. f3 {[%clk 0:01:58]}  Nd6 {[%clk 0:01:32]} 18. Rfe1 {[%clk 0:01:56]}  Rxe1+ {[%clk 0:01:25]} 19. Rxe1 {[%clk 0:01:57]}  Nb5 {[%clk 0:01:01]} 20. Ne5 {[%clk 0:01:52]}  Re7 {[%clk 0:00:43]} 21. Bf2 {[%clk 0:01:33]}  Nxc3 {[%clk 0:00:38]} 22. Nxc6 {[%clk 0:01:31]}  Rxe1+ {[%clk 0:00:27]} 23. Bxe1 {[%clk 0:01:31]}  Nxa2 {[%clk 0:00:25]} 24. Ne7+ {[%clk 0:01:31]}  Kf7 {[%clk 0:00:25]} 25. Nxf5 {[%clk 0:01:32]}  Kf6 {[%clk 0:00:25]} 1-0


[Site "https://www.chess.com"]

[Event "Titled Tuesday Blitz May 4 2021"]
[White "Reprintsev, Alexander"]
[Black "Zaichenko, Daria"]
[WhiteFideId "14100541"]
[BlackFideId "4197453"]
[WhiteElo "2194"]
[BlackElo "2039"]
[Result "0-1"]
[Round "03"]
[TimeControl "180+1"]
[Date "2021.05.04"]
[WhiteClock "0:00:01"]
[BlackClock "0:00:08"]

1. e4 {[%clk 0:02:59]}  c5 {[%clk 0:02:59]} 2. b3 {[%clk 0:02:58]}  d6 {[%clk 0:02:55]} 3. Bb2 {[%clk 0:02:51]}  Nf6 {[%clk 0:02:55]} 4. Bxf6 {[%clk 0:02:50]}  exf6 {[%clk 0:02:55]} 5. Bd3 {[%clk 0:02:48]}  Be7 {[%clk 0:02:55]} 6. Nc3 {[%clk 0:02:46]}  O-O {[%clk 0:02:55]} 7. Nge2 {[%clk 0:02:46]}  Nc6 {[%clk 0:02:54]} 8. O-O {[%clk 0:02:45]}  Ne5 {[%clk 0:02:54]} 9. Ng3 {[%clk 0:02:44]}  Nxd3 {[%clk 0:02:51]} 10. cxd3 {[%clk 0:02:44]}  Be6 {[%clk 0:02:49]} 11. f4 {[%clk 0:02:43]}  a6 {[%clk 0:02:44]} 12. f5 {[%clk 0:02:42]}  Bd7 {[%clk 0:02:44]} 13. Qh5 {[%clk 0:02:39]}  g6 {[%clk 0:02:41]} 14. Qh6 {[%clk 0:02:38]}  Re8 {[%clk 0:02:40]} 15. Nd5 {[%clk 0:02:20]}  Bf8 {[%clk 0:02:37]} 16. Qh4 {[%clk 0:02:18]}  g5 {[%clk 0:02:29]} 17. Qg4 {[%clk 0:02:18]}  Bg7 {[%clk 0:02:21]} 18. Nh5 {[%clk 0:02:17]}  Bc6 {[%clk 0:02:16]} 19. h4 {[%clk 0:02:03]}  Bxd5 {[%clk 0:02:15]} 20. exd5 {[%clk 0:02:04]}  h6 {[%clk 0:02:02]} 21. Rae1 {[%clk 0:02:03]}  Qd7 {[%clk 0:01:58]} 22. d4 {[%clk 0:01:56]}  cxd4 {[%clk 0:01:52]} 23. Qxd4 {[%clk 0:01:56]}  Re5 {[%clk 0:01:53]} 24. Rxe5 {[%clk 0:01:24]}  dxe5 {[%clk 0:01:44]} 25. Qd3 {[%clk 0:01:25]}  Rd8 {[%clk 0:01:40]} 26. Rc1 {[%clk 0:01:24]}  Qxd5 {[%clk 0:01:13]} 27. Qxd5 {[%clk 0:01:24]}  Rxd5 {[%clk 0:01:13]} 28. Rc8+ {[%clk 0:01:25]}  Kh7 {[%clk 0:01:13]} 29. Rc7 {[%clk 0:01:25]}  Kg8 {[%clk 0:01:13]} 30. Rxb7 {[%clk 0:01:25]}  Rxd2 {[%clk 0:01:13]} 31. a4 {[%clk 0:01:25]}  Rb2 {[%clk 0:01:03]} 32. a5 {[%clk 0:01:25]}  gxh4 {[%clk 0:00:59]} 33. Rb4 {[%clk 0:01:16]}  Kh7 {[%clk 0:00:54]} 34. Rb7 {[%clk 0:00:55]}  Kg8 {[%clk 0:00:53]} 35. Kh2 {[%clk 0:00:55]}  Rf2 {[%clk 0:00:44]} 36. Rb6 {[%clk 0:00:45]}  Rb2 {[%clk 0:00:40]} 37. Kh3 {[%clk 0:00:41]}  e4 {[%clk 0:00:34]} 38. Kxh4 {[%clk 0:00:32]}  e3 {[%clk 0:00:32]} 39. Kg3 {[%clk 0:00:29]}  e2 {[%clk 0:00:32]} 40. Kf2 {[%clk 0:00:29]}  Bf8 {[%clk 0:00:29]} 41. Nxf6+ {[%clk 0:00:23]}  Kg7 {[%clk 0:00:27]} 42. Nh5+ {[%clk 0:00:22]}  Kh7 {[%clk 0:00:26]} 43. Nf6+ {[%clk 0:00:21]}  Kg7 {[%clk 0:00:23]} 44. Ne4 {[%clk 0:00:20]}  Be7 {[%clk 0:00:16]} 45. g3 {[%clk 0:00:19]}  h5 {[%clk 0:00:16]} 46. Rxa6 {[%clk 0:00:18]}  Bb4 {[%clk 0:00:14]} 47. f6+ {[%clk 0:00:04]}  Kg6 {[%clk 0:00:13]} 48. Ke3 {[%clk 0:00:02]}  e1=Q+ {[%clk 0:00:12]} 49. Kd4 {[%clk 0:00:03]}  Qd1+ {[%clk 0:00:11]} 50. Ke5 {[%clk 0:00:03]}  Qe2 {[%clk 0:00:09]} 51. Ra8 {[%clk 0:00:03]}  Bc3+ {[%clk 0:00:08]} 52. Kd5 {[%clk 0:00:02]}  Rd2+ {[%clk 0:00:08]} 53. Nxd2 {[%clk 0:00:02]}  Qxd2+ {[%clk 0:00:08]} 54. Kc6 {[%clk 0:00:01]}  Qd4 {[%clk 0:00:08]} 0-1


[Site "https://www.chess.com"]

[Event "Titled Tuesday Blitz May 4 2021"]
[White "Ronka, Erik"]
[Black "Colas, Joshua"]
[WhiteFideId "505080"]
[BlackFideId "2044447"]
[WhiteElo "2264"]
[BlackElo "2347"]
[Result "0-1"]
[Round "03"]
[TimeControl "180+1"]
[Date "2021.05.04"]
[WhiteClock "0:00:27"]
[BlackClock "0:00:50"]

1. d4 {[%clk 0:03:00]}  d5 {[%clk 0:02:57]} 2. c4 {[%clk 0:03:01]}  e6 {[%clk 0:02:56]} 3. Nc3 {[%clk 0:03:01]}  Nf6 {[%clk 0:02:48]} 4. cxd5 {[%clk 0:03:01]}  exd5 {[%clk 0:02:48]} 5. Bg5 {[%clk 0:03:01]}  Nbd7 {[%clk 0:02:48]} 6. e3 {[%clk 0:02:59]}  c6 {[%clk 0:02:47]} 7. Qc2 {[%clk 0:02:58]}  Be7 {[%clk 0:02:46]} 8. Bd3 {[%clk 0:02:58]}  O-O {[%clk 0:02:42]} 9. Nf3 {[%clk 0:02:57]}  Re8 {[%clk 0:02:31]} 10. O-O {[%clk 0:02:52]}  h6 {[%clk 0:02:23]} 11. Bf4 {[%clk 0:02:52]}  Nh5 {[%clk 0:02:23]} 12. Nxd5 {[%clk 0:02:44]}  Nxf4 {[%clk 0:02:17]} 13. Nxf4 {[%clk 0:02:44]}  Bd6 {[%clk 0:02:14]} 14. Ne2 {[%clk 0:02:25]}  c5 {[%clk 0:02:05]} 15. Ng3 {[%clk 0:02:14]}  cxd4 {[%clk 0:02:01]} 16. Nxd4 {[%clk 0:02:08]}  Ne5 {[%clk 0:01:59]} 17. Bf5 {[%clk 0:02:04]}  Bxf5 {[%clk 0:01:54]} 18. Ndxf5 {[%clk 0:01:58]}  Bf8 {[%clk 0:01:53]} 19. Rfd1 {[%clk 0:01:57]}  Qb6 {[%clk 0:01:53]} 20. Rac1 {[%clk 0:01:31]}  g6 {[%clk 0:01:49]} 21. Nd4 {[%clk 0:01:30]}  Bg7 {[%clk 0:01:48]} 22. b3 {[%clk 0:01:29]}  Rad8 {[%clk 0:01:41]} 23. h3 {[%clk 0:01:17]}  h5 {[%clk 0:01:34]} 24. Qc7 {[%clk 0:01:10]}  Qxc7 {[%clk 0:01:32]} 25. Rxc7 {[%clk 0:01:11]}  Nc6 {[%clk 0:01:32]} 26. Rxb7 {[%clk 0:01:07]}  Nxd4 {[%clk 0:01:32]} 27. exd4 {[%clk 0:01:08]}  Bxd4 {[%clk 0:01:27]} 28. Rc1 {[%clk 0:00:58]}  h4 {[%clk 0:01:25]} 29. Nf1 {[%clk 0:00:56]}  Re2 {[%clk 0:01:24]} 30. Ne3 {[%clk 0:00:51]}  Rxe3 {[%clk 0:01:07]} 31. fxe3 {[%clk 0:00:43]}  Bxe3+ {[%clk 0:01:07]} 32. Kf1 {[%clk 0:00:44]}  Bxc1 {[%clk 0:01:07]} 33. Rxa7 {[%clk 0:00:43]}  Bf4 {[%clk 0:00:59]} 34. Kf2 {[%clk 0:00:36]}  Rd2+ {[%clk 0:00:58]} 35. Kf3 {[%clk 0:00:35]}  Bg3 {[%clk 0:00:58]} 36. b4 {[%clk 0:00:34]}  Rf2+ {[%clk 0:00:58]} 37. Ke4 {[%clk 0:00:34]}  Rxg2 {[%clk 0:00:59]} 38. b5 {[%clk 0:00:34]}  Rb2 {[%clk 0:00:59]} 39. a4 {[%clk 0:00:32]}  Kg7 {[%clk 0:00:53]} 40. Rb7 {[%clk 0:00:31]}  Rb4+ {[%clk 0:00:51]} 41. Kf3 {[%clk 0:00:29]}  Rxa4 {[%clk 0:00:52]} 42. b6 {[%clk 0:00:29]}  Rb4 {[%clk 0:00:51]} 43. Kg2 {[%clk 0:00:28]}  g5 {[%clk 0:00:52]} 44. Kf3 {[%clk 0:00:27]}  Kg6 {[%clk 0:00:52]} 45. Kg2 {[%clk 0:00:27]}  Rb2+ {[%clk 0:00:52]} 46. Kf3 {[%clk 0:00:28]}  Rb3+ {[%clk 0:00:53]} 47. Kg2 {[%clk 0:00:28]}  f5 {[%clk 0:00:52]} 48. Kg1 {[%clk 0:00:27]}  g4 {[%clk 0:00:52]} 49. Kg2 {[%clk 0:00:26]}  Rb2+ {[%clk 0:00:52]} 50. Kh1 {[%clk 0:00:27]}  gxh3 {[%clk 0:00:50]} 0-1


[Site "https://www.chess.com"]

[Event "Titled Tuesday Blitz May 4 2021"]
[White "Roque Sola, Gisela"]
[Black "Kokoszczynski, Jan"]
[WhiteFideId "5120241"]
[BlackFideId "1174460"]
[WhiteElo "1863"]
[BlackElo "2166"]
[Result "1/2-1/2"]
[Round "03"]
[TimeControl "180+1"]
[Date "2021.05.04"]
[WhiteClock "0:00:10"]
[BlackClock "0:00:13"]

1. c4 {[%clk 0:03:00]}  e5 {[%clk 0:02:58]} 2. Nc3 {[%clk 0:03:00]}  Bb4 {[%clk 0:02:57]} 3. Nd5 {[%clk 0:02:59]}  Be7 {[%clk 0:02:56]} 4. d4 {[%clk 0:02:36]}  d6 {[%clk 0:02:56]} 5. e4 {[%clk 0:02:33]}  c6 {[%clk 0:02:48]} 6. Nxe7 {[%clk 0:02:32]}  Qxe7 {[%clk 0:02:49]} 7. d5 {[%clk 0:02:26]}  Nf6 {[%clk 0:02:47]} 8. Bd3 {[%clk 0:02:24]}  O-O {[%clk 0:02:45]} 9. Nf3 {[%clk 0:02:22]}  h6 {[%clk 0:02:42]} 10. O-O {[%clk 0:02:22]}  a5 {[%clk 0:02:42]} 11. a3 {[%clk 0:02:20]}  Nbd7 {[%clk 0:02:37]} 12. Be3 {[%clk 0:02:15]}  Ng4 {[%clk 0:02:25]} 13. Bd2 {[%clk 0:02:07]}  Nc5 {[%clk 0:02:23]} 14. Bc2 {[%clk 0:02:07]}  Nf6 {[%clk 0:02:16]} 15. Qe2 {[%clk 0:01:59]}  cxd5 {[%clk 0:01:35]} 16. exd5 {[%clk 0:01:45]}  a4 {[%clk 0:01:29]} 17. Bb4 {[%clk 0:01:36]}  b6 {[%clk 0:01:28]} 18. Bxc5 {[%clk 0:01:23]}  bxc5 {[%clk 0:01:29]} 19. Nd2 {[%clk 0:01:19]}  Bg4 {[%clk 0:01:19]} 20. Qd3 {[%clk 0:01:05]}  Rfb8 {[%clk 0:01:12]} 21. Ne4 {[%clk 0:00:56]}  Nxe4 {[%clk 0:01:06]} 22. Qxe4 {[%clk 0:00:55]}  f5 {[%clk 0:01:06]} 23. Qd3 {[%clk 0:00:45]}  e4 {[%clk 0:00:39]} 24. Qc3 {[%clk 0:00:44]}  Qg5 {[%clk 0:00:33]} 25. Bd1 {[%clk 0:00:27]}  Bxd1 {[%clk 0:00:34]} 26. Raxd1 {[%clk 0:00:26]}  Rb3 {[%clk 0:00:34]} 27. Qd2 {[%clk 0:00:21]}  Qxd2 {[%clk 0:00:32]} 28. Rxd2 {[%clk 0:00:22]}  Rab8 {[%clk 0:00:33]} 29. f3 {[%clk 0:00:21]}  e3 {[%clk 0:00:19]} 30. Re2 {[%clk 0:00:21]}  f4 {[%clk 0:00:20]} 31. g3 {[%clk 0:00:21]}  g5 {[%clk 0:00:14]} 32. gxf4 {[%clk 0:00:19]}  gxf4 {[%clk 0:00:15]} 33. Rg2+ {[%clk 0:00:18]}  Kf7 {[%clk 0:00:15]} 34. Rg4 {[%clk 0:00:18]}  Rxb2 {[%clk 0:00:14]} 35. Rxf4+ {[%clk 0:00:19]}  Ke7 {[%clk 0:00:13]} 36. Re4+ {[%clk 0:00:18]}  Kd7 {[%clk 0:00:12]} 37. Rxe3 {[%clk 0:00:19]}  Rg8+ {[%clk 0:00:13]} 38. Kh1 {[%clk 0:00:17]}  Rgg2 {[%clk 0:00:14]} 39. Rfe1 {[%clk 0:00:13]}  Rxh2+ {[%clk 0:00:14]} 40. Kg1 {[%clk 0:00:13]}  Rbg2+ {[%clk 0:00:11]} 41. Kf1 {[%clk 0:00:13]}  Rc2 {[%clk 0:00:11]} 42. Re7+ {[%clk 0:00:09]}  Kc8 {[%clk 0:00:11]} 43. Re8+ {[%clk 0:00:10]}  Kb7 {[%clk 0:00:12]} 44. R1e7+ {[%clk 0:00:08]}  Ka6 {[%clk 0:00:12]} 45. Ra8+ {[%clk 0:00:08]}  Kb6 {[%clk 0:00:12]} 46. Rb8+ {[%clk 0:00:08]}  Ka6 {[%clk 0:00:13]} 47. Ra8+ {[%clk 0:00:09]}  Kb6 {[%clk 0:00:13]} 48. Rb8+ {[%clk 0:00:09]}  Ka6 {[%clk 0:00:13]} 49. Ra8+ {[%clk 0:00:10]} 1/2-1/2


[Site "https://www.chess.com"]

[Event "Titled Tuesday Blitz May 4 2021"]
[White "Rorrer, Grayson"]
[Black "Gabdushev, Ruslan"]
[WhiteFideId "30944996"]
[BlackFideId "4137833"]
[WhiteElo "2416"]
[BlackElo "2312"]
[Result "0-1"]
[Round "03"]
[TimeControl "180+1"]
[Date "2021.05.04"]
[WhiteClock "0:00:01"]
[BlackClock "0:00:03"]

1. e4 {[%clk 0:03:00]}  Nc6 {[%clk 0:02:59]} 2. Nf3 {[%clk 0:03:00]}  d6 {[%clk 0:02:59]} 3. d4 {[%clk 0:03:00]}  Bg4 {[%clk 0:02:58]} 4. Bb5 {[%clk 0:02:57]}  a6 {[%clk 0:02:58]} 5. Bxc6+ {[%clk 0:02:56]}  bxc6 {[%clk 0:02:57]} 6. h3 {[%clk 0:02:57]}  Bh5 {[%clk 0:02:57]} 7. O-O {[%clk 0:02:57]}  e6 {[%clk 0:02:56]} 8. Nc3 {[%clk 0:02:57]}  Nf6 {[%clk 0:02:53]} 9. Re1 {[%clk 0:02:56]}  Be7 {[%clk 0:02:52]} 10. Bg5 {[%clk 0:02:56]}  Nd7 {[%clk 0:02:44]} 11. Bxe7 {[%clk 0:02:55]}  Qxe7 {[%clk 0:02:44]} 12. Qd3 {[%clk 0:02:55]}  Nb6 {[%clk 0:02:31]} 13. a4 {[%clk 0:02:46]}  a5 {[%clk 0:02:30]} 14. d5 {[%clk 0:02:42]}  cxd5 {[%clk 0:02:20]} 15. Nxd5 {[%clk 0:02:42]}  Nxd5 {[%clk 0:02:13]} 16. exd5 {[%clk 0:02:40]}  O-O {[%clk 0:02:01]} 17. Nd4 {[%clk 0:02:05]}  e5 {[%clk 0:01:55]} 18. Nc6 {[%clk 0:02:03]}  Qg5 {[%clk 0:01:49]} 19. c3 {[%clk 0:02:00]}  f5 {[%clk 0:01:36]} 20. b4 {[%clk 0:01:59]}  Be8 {[%clk 0:01:29]} 21. Nxa5 {[%clk 0:01:55]}  f4 {[%clk 0:01:23]} 22. Kh2 {[%clk 0:01:27]}  Bd7 {[%clk 0:00:56]} 23. Qc4 {[%clk 0:01:22]}  Rf6 {[%clk 0:00:49]} 24. Qxc7 {[%clk 0:01:18]}  Rg6 {[%clk 0:00:45]} 25. Rg1 {[%clk 0:01:14]}  Bf5 {[%clk 0:00:33]} 26. Nc6 {[%clk 0:01:08]}  Re8 {[%clk 0:00:32]} 27. Rae1 {[%clk 0:00:22]}  e4 {[%clk 0:00:08]} 28. Nd4 {[%clk 0:00:20]}  e3 {[%clk 0:00:08]} 29. Nxf5 {[%clk 0:00:09]}  Qxf5 {[%clk 0:00:08]} 30. Qc4 {[%clk 0:00:07]}  Re4 {[%clk 0:00:07]} 31. Qf1 {[%clk 0:00:04]}  f3 {[%clk 0:00:04]} 32. gxf3 {[%clk 0:00:02]}  Qe5+ {[%clk 0:00:03]} 33. Rg3 {[%clk 0:00:02]}  exf2 {[%clk 0:00:03]} 34. Rxe4 {[%clk 0:00:01]}  Qxg3+ {[%clk 0:00:03]} 35. Kh1 {[%clk 0:00:01]} 0-1


[Site "https://www.chess.com"]

[Event "Titled Tuesday Blitz May 4 2021"]
[White "Rosenberg, Evan S"]
[Black "De Waele, Warre"]
[WhiteFideId "2019299"]
[BlackFideId "241156"]
[WhiteElo "2121"]
[BlackElo "2183"]
[Result "0-1"]
[Round "03"]
[TimeControl "180+1"]
[Date "2021.05.04"]
[WhiteClock "0:00:00"]
[BlackClock "0:00:58"]

1. Nf3 {[%clk 0:02:59]}  d5 {[%clk 0:02:59]} 2. c4 {[%clk 0:03:00]}  c6 {[%clk 0:02:59]} 3. d4 {[%clk 0:02:59]}  Nf6 {[%clk 0:02:59]} 4. Nc3 {[%clk 0:03:00]}  e6 {[%clk 0:02:58]} 5. Bg5 {[%clk 0:03:00]}  Nbd7 {[%clk 0:02:54]} 6. e3 {[%clk 0:03:00]}  Be7 {[%clk 0:02:54]} 7. Qc2 {[%clk 0:03:00]}  O-O {[%clk 0:02:54]} 8. Rd1 {[%clk 0:03:01]}  a6 {[%clk 0:02:54]} 9. a3 {[%clk 0:03:00]}  h6 {[%clk 0:02:49]} 10. Bf4 {[%clk 0:03:00]}  dxc4 {[%clk 0:02:47]} 11. Bxc4 {[%clk 0:03:00]}  b5 {[%clk 0:02:48]} 12. Ba2 {[%clk 0:03:01]}  c5 {[%clk 0:02:47]} 13. Bb1 {[%clk 0:03:00]}  Bb7 {[%clk 0:02:34]} 14. O-O {[%clk 0:02:56]}  cxd4 {[%clk 0:02:23]} 15. Nxd4 {[%clk 0:02:50]}  e5 {[%clk 0:02:08]} 16. Bxh6 {[%clk 0:02:50]}  exd4 {[%clk 0:02:04]} 17. Bxg7 {[%clk 0:02:46]}  Kxg7 {[%clk 0:02:02]} 18. Rxd4 {[%clk 0:02:45]}  Rh8 {[%clk 0:02:01]} 19. Rfd1 {[%clk 0:02:42]}  Qc7 {[%clk 0:01:54]} 20. g3 {[%clk 0:02:40]}  Ne5 {[%clk 0:01:51]} 21. Qf5 {[%clk 0:02:14]}  Nf3+ {[%clk 0:01:50]} 22. Kf1 {[%clk 0:02:14]}  Nxd4 {[%clk 0:01:48]} 23. Qg5+ {[%clk 0:02:15]}  Kf8 {[%clk 0:01:46]} 24. Rxd4 {[%clk 0:02:13]}  Rxh2 {[%clk 0:01:46]} 25. Ke2 {[%clk 0:01:53]}  Rd8 {[%clk 0:01:37]} 26. Rf4 {[%clk 0:01:52]}  Qd6 {[%clk 0:01:33]} 27. Rd4 {[%clk 0:01:38]}  Qe6 {[%clk 0:01:31]} 28. Ba2 {[%clk 0:01:30]}  Qh3 {[%clk 0:01:18]} 29. Rh4 {[%clk 0:01:13]}  Qg2 {[%clk 0:01:02]} 30. Qh6+ {[%clk 0:01:11]}  Ke8 {[%clk 0:01:01]} 31. Qh8+ {[%clk 0:00:07]}  Bf8 {[%clk 0:01:00]} 32. Rxh2 {[%clk 0:00:01]}  Bf3+ {[%clk 0:00:58]} 33. Ke1 {[%clk 0:00:00]}  Qg1# {[%clk 0:00:58]} 0-1


[Site "https://www.chess.com"]

[Event "Titled Tuesday Blitz May 4 2021"]
[White "Samarth, J Rao"]
[Black "Bologan, Victor"]
[WhiteFideId "46652370"]
[BlackFideId "13900048"]
[WhiteElo "1514"]
[BlackElo "2511"]
[Result "0-1"]
[Round "03"]
[TimeControl "180+1"]
[Date "2021.05.04"]
[WhiteClock "0:00:55"]
[BlackClock "0:01:24"]

1. c4 {[%clk 0:03:00]}  e5 {[%clk 0:02:59]} 2. Nc3 {[%clk 0:02:59]}  Nf6 {[%clk 0:02:59]} 3. Nf3 {[%clk 0:02:59]}  Nc6 {[%clk 0:02:53]} 4. e3 {[%clk 0:02:59]}  Bb4 {[%clk 0:02:52]} 5. d4 {[%clk 0:02:59]}  e4 {[%clk 0:02:49]} 6. Nd2 {[%clk 0:02:58]}  Bxc3 {[%clk 0:02:48]} 7. bxc3 {[%clk 0:02:57]}  O-O {[%clk 0:02:48]} 8. g4 {[%clk 0:02:56]}  Qe7 {[%clk 0:02:33]} 9. g5 {[%clk 0:02:53]}  Ne8 {[%clk 0:02:32]} 10. h4 {[%clk 0:02:49]}  d6 {[%clk 0:02:30]} 11. Bg2 {[%clk 0:02:40]}  f5 {[%clk 0:02:29]} 12. gxf6 {[%clk 0:02:40]}  Nxf6 {[%clk 0:02:29]} 13. Ba3 {[%clk 0:02:35]}  b6 {[%clk 0:02:23]} 14. Qc2 {[%clk 0:02:32]}  Bf5 {[%clk 0:02:21]} 15. O-O-O {[%clk 0:02:32]}  Na5 {[%clk 0:02:15]} 16. Rdg1 {[%clk 0:02:29]}  c5 {[%clk 0:02:13]} 17. Bh3 {[%clk 0:02:15]}  Bxh3 {[%clk 0:02:03]} 18. Rxh3 {[%clk 0:02:15]}  Qf7 {[%clk 0:02:02]} 19. Rhg3 {[%clk 0:02:14]}  g6 {[%clk 0:02:01]} 20. Nxe4 {[%clk 0:01:54]}  Nxe4 {[%clk 0:01:58]} 21. Qxe4 {[%clk 0:01:53]}  Kh8 {[%clk 0:01:52]} 22. h5 {[%clk 0:01:13]}  Qf5 {[%clk 0:01:32]} 23. hxg6 {[%clk 0:00:59]}  Qxe4 {[%clk 0:01:29]} 24. g7+ {[%clk 0:00:58]}  Kg8 {[%clk 0:01:26]} 25. gxf8=Q+ {[%clk 0:00:59]}  Kxf8 {[%clk 0:01:25]} 26. Rg8+ {[%clk 0:00:55]}  Kf7 {[%clk 0:01:24]} 0-1


[Site "https://www.chess.com"]

[Event "Titled Tuesday Blitz May 4 2021"]
[White "Saraci, Nderim"]
[Black "Arkell, Keith C"]
[WhiteFideId "6351921"]
[BlackFideId "400270"]
[WhiteElo "2486"]
[BlackElo "2398"]
[Result "1-0"]
[Round "03"]
[TimeControl "180+1"]
[Date "2021.05.04"]
[WhiteClock "0:00:16"]
[BlackClock "0:00:06"]

1. d4 {[%clk 0:03:00]}  e6 {[%clk 0:02:59]} 2. Nf3 {[%clk 0:03:00]}  Nf6 {[%clk 0:02:57]} 3. c4 {[%clk 0:03:00]}  Bb4+ {[%clk 0:02:57]} 4. Bd2 {[%clk 0:03:00]}  Bxd2+ {[%clk 0:02:57]} 5. Qxd2 {[%clk 0:03:01]}  d6 {[%clk 0:02:57]} 6. Nc3 {[%clk 0:03:02]}  Qe7 {[%clk 0:02:58]} 7. g3 {[%clk 0:03:02]}  e5 {[%clk 0:02:58]} 8. Bg2 {[%clk 0:02:58]}  O-O {[%clk 0:02:56]} 9. dxe5 {[%clk 0:02:57]}  dxe5 {[%clk 0:02:56]} 10. Nd5 {[%clk 0:02:56]}  Nxd5 {[%clk 0:02:48]} 11. cxd5 {[%clk 0:02:57]}  c6 {[%clk 0:02:48]} 12. O-O {[%clk 0:02:41]}  cxd5 {[%clk 0:02:46]} 13. Qxd5 {[%clk 0:02:42]}  Nc6 {[%clk 0:02:46]} 14. Rfd1 {[%clk 0:02:37]}  Bf5 {[%clk 0:02:32]} 15. a3 {[%clk 0:02:32]}  Rfd8 {[%clk 0:02:31]} 16. Qc4 {[%clk 0:02:27]}  h6 {[%clk 0:02:26]} 17. Rac1 {[%clk 0:02:25]}  Rxd1+ {[%clk 0:02:22]} 18. Rxd1 {[%clk 0:02:24]}  Rc8 {[%clk 0:02:22]} 19. Qa4 {[%clk 0:02:18]}  a6 {[%clk 0:02:17]} 20. e3 {[%clk 0:02:01]}  Qc5 {[%clk 0:01:59]} 21. Nh4 {[%clk 0:01:35]}  Be6 {[%clk 0:01:54]} 22. Be4 {[%clk 0:01:28]}  g6 {[%clk 0:01:32]} 23. Qc2 {[%clk 0:00:50]}  Qxc2 {[%clk 0:01:30]} 24. Bxc2 {[%clk 0:00:51]}  Na5 {[%clk 0:01:11]} 25. Be4 {[%clk 0:00:45]}  f5 {[%clk 0:01:05]} 26. Bd5 {[%clk 0:00:44]}  Kf7 {[%clk 0:00:45]} 27. b4 {[%clk 0:00:36]}  Nc4 {[%clk 0:00:30]} 28. Bxb7 {[%clk 0:00:29]}  Rc7 {[%clk 0:00:27]} 29. Bxa6 {[%clk 0:00:29]}  Nxa3 {[%clk 0:00:28]} 30. Nf3 {[%clk 0:00:28]}  e4 {[%clk 0:00:24]} 31. Nd4 {[%clk 0:00:26]}  Rd7 {[%clk 0:00:13]} 32. Rc1 {[%clk 0:00:24]}  Ra7 {[%clk 0:00:06]} 33. b5 {[%clk 0:00:17]}  Nc4 {[%clk 0:00:06]} 34. Nxe6 {[%clk 0:00:16]} 1-0


[Site "https://www.chess.com"]